{"text_format":"1","workbook":"xlsx","n_sheets":13,"sheets":["1_Wniosek","2_Informacje","3_Przedsięwzięcie","4_Konkurencja","5_Produkty","6_Zasoby","7_Przychody","8_Koszty","9_Rachunek wyników","10_Dotacja inwestycyjna","11_Wsparcie pomostowe","SW_Dotacja inwestycyjna","SW_Wsparcie pomostowe"],"not_rendered":{"charts":0,"images":1,"macros":1,"external_links":0,"defined_names":19,"comments":4,"pivot_tables":0},"unopened":[],"bounds":{"document_bytes":16777216,"sheet_cells":100000,"rows_first":2000,"rows_last":500,"rows_between":2000,"halvings":0,"cell_chars":16384,"cell_head_chars":4096},"cells_cut":0,"cells_raw":0,"read":"whole","date_system":"1900"}

{"sheet":"1_Wniosek","index":0,"n_rows":33,"n_cols":12,"rows_kept":33,"cut":false,"hidden":false,"merged":[[32,7,32,9],[2,0,2,9],[3,0,3,9],[19,0,19,9],[15,8,15,9],[12,2,13,4],[12,7,13,9],[17,0,18,6],[17,7,18,9],[11,8,11,9],[14,7,14,9],[11,3,11,4],[22,0,22,6],[27,0,27,6],[25,0,25,6],[21,0,21,6],[0,0,0,9],[1,0,1,9],[7,0,10,9],[11,0,11,2],[11,5,11,7],[6,0,6,9],[5,0,5,9],[4,0,4,9],[20,0,20,9],[14,0,16,4],[0,11,2,14],[31,7,31,9],[26,0,26,6],[26,7,26,9],[22,7,22,9],[23,7,23,9],[24,7,24,9],[25,7,25,9],[27,7,27,9],[24,0,24,6],[23,0,23,6],[28,7,28,9],[30,0,30,2],[21,7,21,9]]}
["Wniosek o  przyznanie dotacji na utworzenie miejsca pracy w przedsiębiorstwie społecznym oraz udzielenie podstawowego wsparcia pomostowego.",null,null,null,null,null,null,null,null,null,null,"Uwaga ! Jeśli w arkuszu potrzebujesz dodać więcej wierszy do wpisania osób, produktów, przychodów, kosztów (lewa strona arkusza - belka boczna \"+\") należy wcześniej uruchomić makra formularza excel. Hasło: CRIS "]
["Dane uczestnika/ów projektu (podmiotu lub lista członków założycieli: nazwa wnioskodawcy/ów / imię nazwisko, adres, nr telefonu, mail):"]
["  "]
[]
[]
[]
[]
["Wnoszę o przyznanie środków finansowych  na utworzenie miejsca pracy w przedsiębiorstwie społecznym, w celu sfinansowania wydatków związanych z przygotowaniem podmiotu do działalności/ rozwojem działalności, zgodnie z załączonym Biznesplanem oraz Planem inwestycyjnym, a także przyznania wsparcia pomostowego zgodnie z harmonogramem rzeczowo – finansowym do postawowego wsparcia pomostowego."]
[]
[]
[]
["Wnioskowana kwota środków dotacji:",null,null,{"$f":"SUM('10_Dotacja inwestycyjna'!F3:O3)","v":0},null,"Wnioskowana kwota środków wsparcia pomostowego:",null,null,{"$f":"SUM('11_Wsparcie pomostowe'!F3:O3)","v":0}]
[]
[null,"słownie:",null,null,null,null,"słownie:"]
[null,null,null,null,null,"- ilość rat:",null,6]
[null,null,null,null,null,"- wysokość każdej w PLN:",null,null,{"$f":"'11_Wsparcie pomostowe'!I3/6","v":0}]
[null,null,null,null,null,"- w okresie od dnia:",null,null,"do dnia:"]
["Wnioskowana forma zabezpieczenia prawidłowej realizacji umowy \no przyznanie wsparcia finansowego na utworzenie miejsca pracy w przedsiębiorstwie społecznym oraz realizacji umowy o przyznane wsparcie pomostowe:"]
[]
["Ja, niżej podpisany/na wnioskuję o przyznanie środków finansowych na utworzenie miejsca pracy w przedsiębiorstwie społecznym  dla (nazwa/ planowana nazwa przedsiębiorstwa społecznego):"]
[]
["Lista osób planowanych do zatrudnienia w ramach dotacji:",null,null,null,null,null,null,"Wnioskowana kwota:"]
[]
[]
[]
[]
[]
[]
[null,null,null,null,null,null,"Suma:",{"$f":"SUM(F23:J28)","v":0}]
["Data rozpoczęcia działalności gospodarczej w formie przedsiębiorstwa społecznego:"]
[]
["Data zawarcia umowy o przyznanie środków finansowych: "]
["Nr umowy o przyznanie środków finansowych:"]

{"sheet":"2_Informacje","index":1,"n_rows":57,"n_cols":14,"rows_kept":57,"cut":false,"hidden":false,"merged":[[50,0,51,2],[50,3,51,12],[8,13,15,18],[7,13,7,18],[2,0,6,12],[8,3,8,12],[9,3,9,12],[10,3,10,12],[12,3,14,12],[7,0,7,12],[8,0,8,2],[9,0,9,2],[10,0,10,2],[11,0,11,2],[20,0,49,2],[20,3,49,12],[11,3,11,7],[19,0,19,2],[18,0,18,2],[12,0,14,2],[11,8,11,12],[15,3,15,12],[15,0,15,2],[17,0,17,12],[18,3,18,12],[19,3,19,12],[52,0,53,2],[54,0,55,2],[52,3,53,12],[54,3,55,12],[56,3,73,12],[56,0,73,2]]}
["Biznesplan"]
[]
["Realizacja wsparcia odbywa się w ramach projektu „Ośrodek Wsparcia Ekonomii Społecznej Obszaru Rybnickiego”, współfinansowanego z Europejskiego Funduszu Społecznego w ramach Regionalnego Programu Operacyjnego Województwa Śląskiego na lata 2014-2020 – Oś Priorytetowa IX Włączenie społeczne, Działanie 9.3 Rozwój ekonomii społecznej w regionie Poddziałanie 9.3.1 Wsparcie sektora ekonomii społecznej – projekty konkursowe."]
[]
[]
[]
[]
["2.1. Dane wnioskodawcy",null,null,null,null,null,null,null,null,null,null,null,null,"Instrukcja pkt 2.1"]
["2.1.1. Nazwa podmiotu, grupy inicjatywnej lub nazwa pomysłu ",null,null,null,null,null,null,null,null,null,null,null,null,"Grupa inicjatywna składa się z osób fizycznych, podmiotów ekonomii społecznej lub istniejących przedsiębiorstw społecznych (w zależności od ogłoszenia konkursowego). \n\nW przypadku osób fizycznych wnioskodawcy wskazują nazwę grupy inicjatywnej lub nazwę pomysłu dla planowanego przedsięwzięcia. W dalszej części (forma prawna, adres, osoby reprezentujące grupę zgodnie z założeniami pomysłu - na podstawie opracowanego planu).\n\nW przypadku osób prawnych (PES, PS) dane powinny być zgodne z obowiązującymi w organizacji i zgodne z publicznymi rejestrami (np. KRS)."]
["2.1.2. Forma prawna  "]
["2.1.3.  Adres "]
["2.1.4. NIP/REGON (jeśli dotyczy)"]
["2.1.5. Osoby reprezentujące podmiot (zgodnie z KRS), grupę inicjatywną lub pomysł"]
[]
[]
["2.1.6. Telefon/adres e-mail"]
[]
["2.2. Opis dotychczas prowadzonej działalności"]
["2.2.1. Data rozpoczęcia działalności"]
["2.2.2. Miejsce prowadzenia działalności"]
["2.1.3. Dotychczasowa działalność przedsiębiorstwa społecznego – jeśli dotyczy"]
[]
[]
[]
[]
[]
[]
[]
[]
[]
[]
[]
[]
[]
[]
[]
[]
[]
[]
[]
[]
[]
[]
[]
[]
[]
[]
[]
[]
[]
["2.1.4. Czy przedsiębiorstwo społeczne korzystało wcześniej z wsparcia OWES?",null,null,null,null,null,null,null,null,null,null,0]
[]
["2.1.5. Czy przedsiębiorstwo społeczne utworzyło miejsca pracy?"]
[]
["2.1.6. Czy utworzone miejsca pracy zostały utrzymane?"]
[]
["2.1.7. Jeśli nie utrzymano miejsc pracy, wskaż dlaczego"]

{"sheet":"3_Przedsięwzięcie","index":2,"n_rows":60,"n_cols":23,"rows_kept":60,"cut":false,"hidden":false,"merged":[[0,0,0,10],[39,12,39,21],[0,12,0,21],[24,12,24,21],[1,0,23,10],[1,11,23,11],[1,12,23,21],[25,0,38,10],[25,12,38,21],[24,0,24,10],[48,0,48,10],[52,0,52,10],[40,0,47,10],[54,18,54,21],[55,18,55,21],[53,4,53,10],[53,1,53,3],[54,12,56,17],[54,11,56,11],[52,12,52,21],[40,12,47,21],[48,12,48,21],[49,12,51,21],[56,18,56,21],[25,11,38,11],[49,0,51,10],[59,4,59,10],[58,1,58,3],[59,1,59,3],[56,1,56,3],[54,1,54,3],[55,1,55,3],[57,0,57,10],[58,4,58,10],[54,4,54,10],[55,4,55,10],[56,4,56,10],[39,0,39,10],[40,11,47,11],[49,11,51,11]]}
["3.1. Diagnoza i uzasadnienie planowanej działalności",null,null,null,null,null,null,null,null,null,null,null,"Instrukcja pkt 3.1"]
[null,null,null,null,null,null,null,null,null,null,null,null,"Należy opisać jakie argumenty uzasadniają podjęcie działalności gospodarczej uwzględniając czynniki zewnętrzne (np.. demografię, zmiany w prawie, technologię, trendy, statystyki znajdujące się w publicznych raportach, publikacjach lub innych opracowaniach z podaniem ich źródła) oraz czynniki wewnętrzne związane z argumentami obejmującymi funkcjonowanie organizacji, jej członków, podopiecznych czy też pracowników. W uzasadnieniu określ sytuację  odnosząc się również do miejsca realizacji przedsięwzięcia."]
[]
[]
[]
[]
[]
[]
[]
[]
[]
[]
[]
[]
[]
[]
[]
[]
[]
[]
[]
[]
[]
[]
["3.2. Działania przeprowadzone w celu zweryfikowania zapotrzebowania",null,null,null,null,null,null,null,null,null,null,null,"Instrukcja pkt 3.2"]
[null,null,null,null,null,null,null,null,null,null,null,null,"Czy wnioskodawca przeprowadzał działania, które pozwoliły zweryfikować pomysł. Czy strategia, która ma generować sprzedaż została przetestowana? Czy kanały dystrybucji zostały już częściowo wykorzystane i reakcje klientów okazały się pozytywne. Istotną rolą działań jest prosta weryfikacja czy tworzone produkty lub metody dotarcia odpowiadają na potrzebę odbiorców i wnioskodawca może wskazać wiarygodne przesłanki na ten temat."]
[]
[]
[]
[]
[]
[]
[]
[]
[]
[]
[]
[]
[]
["3.3. Misja/Wizja",null,null,null,null,null,null,null,null,null,null,null,"Instrukcja pkt 3.3"]
[null,null,null,null,null,null,null,null,null,null,null,null,"Opisz jak definiujesz misję i wizję swojego przedsięwzięcia mając na uwadzę, że:\nMisja stanowi zestaw głównych wartości, które są zgodne z wewnętrznymi zasadami organizacji/osoby oraz jest elementem komunikacji zewnętrznej stanowiąc bazę do opracowania spójnych kanałów marketingu.\nWizja wskazuje na sytuację organizacji w dłuższej perspektywie. Odpowiada na pytanie do czego dąży organizacja i jaka ma być jej sytuacja docelowa. Wizja pomaga prowadzić przedsięwzięcie we właściwym kierunku, jednocześnie motywując do podjemowania aktywnych działań przez osoby zaangażowane w projekt."]
[]
[]
[]
[]
[]
[]
[]
["3.4. Cele",null,null,null,null,null,null,null,null,null,null,null,"Instrukcja pkt 3.4"]
[null,null,null,null,null,null,null,null,null,null,null,null,"Należy przedstawić miarodajne cele w perspektywie pierwszego oraz trzeciego roku działalności. Przy konstruowaniu celu istotne jest podanie mierzalnych wartości celu oraz  terminu jego osiągnięcia. W kostrukcji celów zwróć uwagę co najmniej na wymiar biznesowy i społeczny realizowanego przedsięwzięcia. "]
[]
[]
["3.5. Klienci ",null,null,null,null,null,null,null,null,null,null,null,"Instrukcja pkt 3.5"]
[null,"Opis wyszczególnionej grupy ",null,null,"Uzasadnienie doboru klientów"]
["a)"," ",null,null," ",null,null,null,null,null,null,null,"Przedstaw informacje dotyczące poszczególnych grup docelowych. Należy wypisać cechy grupy, jej zachowania, informacje przydatne w kontekście konstruowania oferty. Istotne jest podanie informacji o obawach i korzyściach, które są dla niej charakterystyczne. W ocenie realności założeń biznesplanu ważne jest właściwe powiązanie ogólnej diagnozy sytuacji, wyboru kluczowych klientów oraz wartości w postaci oferty, którą zamierzamy oferować klientom.",null,null,null,null,null,"Uwaga ! Jeśli w arkuszu potrzebujesz dodać więcej wierszy do wpisania klientów (lewa strona arkusza - belka boczna \"+\") należy wcześniej uruchomić makra formularza excel. Hasło: CRIS \n"]
["b)"," ",null,null," "]
["c)"," ",null,null," "]
["\"+\" <--- Dodaj kolejne grupy klientów"]
["d)"," ",null,null," ",null,null,null,null,null,null,null,null,null,null,null,null,null,null,null,null,null,{"$f":"LEN(E59)","v":1}]
["e)"," ",null,null," ",null,null,null,null,null,null,null,null,null,null,null,null,null,null,null,null,null,{"$f":"LEN(E60)","v":1}]

{"sheet":"4_Konkurencja","index":3,"n_rows":9,"n_cols":13,"rows_kept":9,"cut":false,"hidden":false,"merged":[[2,12,2,17],[3,12,4,17],[0,0,0,9],[8,0,9,0],[2,2,3,6],[4,2,5,6],[6,2,7,6],[8,1,9,6],[2,1,3,1],[4,1,5,1],[6,1,7,1],[1,2,1,6]]}
["4. Analiza konkurencji"]
[null,"Nazwa:","Obszar działalności konkurencji/produktów konkurencji:",null,null,null,null,"Jakość:","Cena:","Marketing:","Suma:"]
["a)"," "," ",null,null,null,null," "," "," ",{"$f":"SUM(H3:J3)","v":0},null,"Instrukcja"]
[null,null,null,null,null,null,null,null,null,null,null,null,"Należy dokonać analizy konkurencji bezpośredniej, a jeżeli konkurencja bezpośrednia nie występuje analizy konkurencji pośredniej dotyczącej określonych produktów i usług oraz wartości dla klienta. Istotny jest obszar konkurencji z innymi podmiotami nawiązując do wskazanej ogolnej oceny przez pryzmat jakości, ceny i marketingu. \n\nOcena powinna zostać wyrażona w skali 1-10"]
["b)"," "," ",null,null,null,null," "," "," ",{"$f":"SUM(H5:J5)","v":0}]
[]
["c)"," "," ",null,null,null,null," "," "," ",{"$f":"SUM(H7:J7)","v":0}]
[]
["d)",{"$f":"'2_Informacje'!D9","v":0},null,null,null,null,null,null,null,null,{"$f":"SUM(H9:J9)","v":0}]

{"sheet":"5_Produkty","index":4,"n_rows":50,"n_cols":21,"rows_kept":50,"cut":false,"hidden":false,"merged":[[27,10,27,13],[27,6,27,9],[35,15,35,20],[20,15,20,20],[39,6,39,13],[38,0,38,13],[40,6,40,13],[48,15,48,20],[47,0,47,13],[39,2,39,5],[35,6,35,13],[36,6,36,13],[32,0,32,13],[40,2,40,5],[34,6,34,13],[37,6,37,13],[33,0,33,13],[20,2,20,5],[21,2,21,5],[22,2,22,5],[24,2,24,5],[20,6,20,9],[21,6,21,9],[45,2,45,5],[46,2,46,5],[31,10,31,13],[29,0,29,13],[30,2,30,5],[31,2,31,5],[31,6,31,9],[30,10,30,13],[30,6,30,9],[34,2,34,5],[35,2,35,5],[36,2,36,5],[37,2,37,5],[43,6,43,13],[41,0,41,13],[49,15,49,20],[44,0,44,13],[42,6,42,13],[6,6,6,20],[7,6,7,20],[18,0,18,13],[10,2,10,17],[9,0,9,20],[28,6,28,9],[26,0,26,13],[27,2,27,5],[28,2,28,5],[22,10,22,13],[24,10,24,13],[28,10,28,13],[25,2,25,5],[45,6,45,13],[46,6,46,13],[42,2,42,5],[43,2,43,5],[49,1,49,13],[48,0,48,13],[11,1,12,1],[25,6,25,9],[20,10,20,13],[21,10,21,13],[23,0,23,13],[2,6,2,20],[3,6,3,20],[4,6,4,20],[11,19,12,19],[13,19,14,19],[15,19,16,19],[15,1,16,1],[13,1,14,1],[11,0,12,0],[13,0,14,0],[15,0,16,0],[11,18,12,18],[13,18,14,18],[15,18,16,18],[1,6,1,20],[0,0,0,20],[5,0,5,20],[21,15,22,18],[19,15,19,20],[34,15,34,20],[19,10,19,13],[19,2,19,5],[2,1,2,5],[3,1,3,5],[4,1,4,5],[1,0,1,5],[11,2,12,17],[13,2,14,17],[15,2,16,17],[6,1,6,5],[7,1,7,5],[11,20,12,20],[13,20,14,20],[15,20,16,20],[19,6,19,9],[22,6,22,9],[24,6,24,9],[25,10,25,13]]}
[{"$f":"'3_Przedsięwzięcie'!A53","v":"3.5. Klienci "}]
[{"$f":"'3_Przedsięwzięcie'!B54","v":"Opis wyszczególnionej grupy "},null,null,null,null,null,{"$f":"'3_Przedsięwzięcie'!E54","v":"Uzasadnienie doboru klientów"}]
[{"$f":"'3_Przedsięwzięcie'!A55","v":"a)"},{"$f":"'3_Przedsięwzięcie'!B55","v":" "},null,null,null,null,{"$f":"'3_Przedsięwzięcie'!E55","v":" "}]
[{"$f":"'3_Przedsięwzięcie'!A56","v":"b)"},{"$f":"'3_Przedsięwzięcie'!B56","v":" "},null,null,null,null,{"$f":"'3_Przedsięwzięcie'!E56","v":" "}]
[{"$f":"'3_Przedsięwzięcie'!A57","v":"c)"},{"$f":"'3_Przedsięwzięcie'!B57","v":" "},null,null,null,null,{"$f":"'3_Przedsięwzięcie'!E57","v":" "}]
[{"$f":"'3_Przedsięwzięcie'!A58","v":"\"+\" <--- Dodaj kolejne grupy klientów"}]
[{"$f":"'3_Przedsięwzięcie'!A59","v":"d)"},{"$f":"'3_Przedsięwzięcie'!B59","v":" "},null,null,null,null,{"$f":"'3_Przedsięwzięcie'!E59","v":" "}]
[{"$f":"'3_Przedsięwzięcie'!A60","v":"e)"},{"$f":"'3_Przedsięwzięcie'!B60","v":" "},null,null,null,null,{"$f":"'3_Przedsięwzięcie'!E60","v":" "}]
[]
[{"$f":"'4_Konkurencja'!A1","v":"4. Analiza konkurencji"}]
[null,{"$f":"'4_Konkurencja'!B2","v":"Nazwa:"},{"$f":"'4_Konkurencja'!C2","v":"Obszar działalności konkurencji/produktów konkurencji:"},null,null,null,null,null,null,null,null,null,null,null,null,null,null,null,{"$f":"'4_Konkurencja'!H2","v":"Jakość:"},{"$f":"'4_Konkurencja'!I2","v":"Cena:"},{"$f":"'4_Konkurencja'!J2","v":"Marketing:"}]
[{"$f":"'4_Konkurencja'!A3","v":"a)"},{"$f":"'4_Konkurencja'!B3","v":" "},{"$f":"'4_Konkurencja'!C3","v":" "},null,null,null,null,null,null,null,null,null,null,null,null,null,null,null,{"$f":"'4_Konkurencja'!H3","v":" "},{"$f":"'4_Konkurencja'!I3","v":" "},{"$f":"'4_Konkurencja'!J3","v":" "}]
[]
[{"$f":"'4_Konkurencja'!A5","v":"b)"},{"$f":"'4_Konkurencja'!B5","v":" "},{"$f":"'4_Konkurencja'!C5","v":" "},null,null,null,null,null,null,null,null,null,null,null,null,null,null,null,{"$f":"'4_Konkurencja'!H5","v":" "},{"$f":"'4_Konkurencja'!I5","v":" "},{"$f":"'4_Konkurencja'!J5","v":" "}]
[]
[{"$f":"'4_Konkurencja'!A7","v":"c)"},{"$f":"'4_Konkurencja'!B7","v":" "},{"$f":"'4_Konkurencja'!C7","v":" "},null,null,null,null,null,null,null,null,null,null,null,null,null,null,null,{"$f":"'4_Konkurencja'!H7","v":" "},{"$f":"'4_Konkurencja'!I7","v":" "},{"$f":"'4_Konkurencja'!J7","v":" "}]
[]
[]
["5. 1. Produkty/usługi"]
[null,"Nazwa produktu/ usługi","Opis produktu/usługi",null,null,null,"W jaki sposób produkt odpowiada \nna potrzeby klienta",null,null,null,"W jaki sposób produkt wyróżnia się \nna tle konkurencji",null,null,null,null,"Instrukcja pkt 5.1"]
["a)"," ",null,null,null,null,null,null,null,null,null,null,null,null,null,"Należy dokonać opis swojego produktu lub usługi uwzględniając specyficzne cechy. \nW dalszej części istotne jest wskazanie w kontekście grupy docelowej jak produkt lub usługa zaspokajają potrzeby klienta, odpowiadają na jego potrzeby i oczekiwania. Jak produkt oddziałuje na korzyści lub obawy klienta. \nOstatecznie ważne jest również określenie produktu względem produktu konkurencyjnego , jakie ma wyróżniki i w jakim segmencie może być dla klienta bardziej atrakcyjny niż oferta konkurencji."]
["b)"," ",null,null,null,null,null,null,null,null,null,null,null,null,null,"Uwaga! Jeśli w arkuszu potrzebujesz dodać więcej wierszy do wpisania osób, produktów, przychodów, kosztów (lewa strona arkusza - belka boczna \"+\") należy wcześniej uruchomić makra formularza excel. Hasło: CRIS "]
["c)"," "]
["\"+\" <--- Dodaj kolejne produkty"]
["d)"," "]
["e)"," "]
[]
["f)"," "]
["g)"," "]
[]
["h)"," "]
["i)"," "]
[]
["5.2. Marketing produktu/usługi"]
[null,{"$f":"B20","v":"Nazwa produktu/ usługi"},"Dystrybucja produktu/usługi",null,null,null,"Planowane kanały komunikacji i promocji",null,null,null,null,null,null,null,null,"Instrukcja pkt 5.2"]
[{"$f":"A21","v":"a)"},{"$f":"B21","v":" "},null,null,null,null,null,null,null,null,null,null,null,null,null,"Wnioskodawca wskazuje kanały dystrybucji i sprzedaży. Czy oferta będzie proponowana w sposób stacjonarny, mobilny  czy za pomocą sprzedaży internetowej. Czy wnioskodawca wykorzystuje inne dostępne platformy sprzedaży i dlaczego ta forma jest najbardziej efektywna.\nW dalszej części należy wskazać kanały komunikacji, dotarcia do klientów z informacją i reklamą. Istotne jest wskazanie strategii promocji - jakie narzędzia zostaną zastosowane i dlaczego wnioskodawca wskazuje na ich efektywność."]
[{"$f":"A22","v":"b)"},{"$f":"B22","v":" "}]
[{"$f":"A23","v":"c)"},{"$f":"B23","v":" "}]
["\"+\" <--- Dodaj kolejne produkty"]
[{"$f":"A25","v":"d)"},{"$f":"B25","v":" "}]
[{"$f":"A26","v":"e)"},{"$f":"B26","v":" "}]
[]
[{"$f":"A28","v":"f)"},{"$f":"B28","v":" "}]
[{"$f":"A29","v":"g)"},{"$f":"B29","v":" "}]
[]
[{"$f":"A31","v":"h)"},{"$f":"B31","v":" "}]
[{"$f":"A32","v":"i)"},{"$f":"B32","v":" "}]
[]
["5.3. Potencjał rozwojowy przedsięwzięcia",null,null,null,null,null,null,null,null,null,null,null,null,null,null,"Instrukcja pkt 5.3"]
[null,null,null,null,null,null,null,null,null,null,null,null,null,null,null,"Wnioskodawca wskazuje potencjał swojej działalności. Jak na bazie istniejącego zasobu można rozwijac zakres swoich usług. Czy możliwe jest utworzenie nowej oferty lub uzupełnienie istniejącej o nowe komplemantarne elementy. Czy przedstawiony potencjał daje szanse na ewentualne pozyskanie dodatkowych przychodów poprzez zaangażowanie nowych lub wyższy zwrot z inwestycji w dotychczasowych klientów. "]

{"sheet":"6_Zasoby","index":5,"n_rows":71,"n_cols":11,"rows_kept":71,"cut":false,"hidden":false,"merged":[[24,3,24,4],[22,5,22,6],[22,7,22,8],[23,5,23,6],[23,7,23,8],[24,5,24,6],[24,7,24,8],[55,0,55,8],[31,0,31,8],[37,2,37,3],[39,2,39,3],[40,2,40,3],[38,5,38,6],[38,7,38,8],[39,5,39,6],[39,7,39,8],[27,2,27,8],[47,2,47,3],[47,5,47,6],[47,7,47,8],[69,3,69,6],[69,7,69,8],[70,7,70,8],[62,7,62,8],[65,7,65,8],[66,7,66,8],[67,0,67,8],[66,3,66,6],[65,3,65,6],[64,7,64,8],[62,3,62,6],[63,7,63,8],[64,3,64,6],[63,3,63,6],[70,3,70,6],[68,3,68,6],[20,5,20,6],[54,1,54,8],[51,1,51,8],[56,1,56,8],[60,0,60,6],[32,2,32,8],[59,1,59,8],[58,1,58,8],[52,1,52,8],[28,2,28,8],[21,0,21,8],[20,3,20,4],[29,2,29,8],[30,2,30,8],[53,1,53,8],[57,1,57,8],[50,0,50,8],[33,2,33,8],[68,7,68,8],[61,7,61,8],[61,3,61,6],[22,3,22,4],[23,3,23,4],[17,7,17,8],[18,7,18,8],[19,7,19,8],[20,7,20,8],[16,5,16,6],[17,5,17,6],[18,5,18,6],[19,5,19,6],[3,10,5,13],[5,4,5,8],[6,4,6,8],[7,4,7,8],[16,3,16,4],[17,3,17,4],[18,3,18,4],[19,3,19,4],[16,7,16,8],[0,1,0,8],[9,4,9,8],[10,4,10,8],[11,4,11,8],[2,4,2,8],[3,4,3,8],[4,4,4,8],[8,0,8,8],[14,1,15,1],[14,2,15,2],[14,3,15,4],[14,5,15,6],[14,7,15,8],[41,0,41,8],[40,5,40,6],[40,7,40,8],[38,2,38,3],[34,2,34,8],[37,5,37,6],[37,7,37,8],[48,2,48,3],[48,5,48,6],[48,7,48,8],[45,0,45,8],[42,2,42,3],[42,5,42,6],[42,7,42,8],[43,2,43,3],[43,5,43,6],[43,7,43,8],[44,2,44,3],[44,5,44,6],[44,7,44,8],[46,2,46,3],[46,5,46,6],[46,7,46,8]]}
[null,"6.1. Zasoby ludzkie"]
[null,"6.1.1. Określ  potrzebne stanowiska w planowanym przedsięwzięciu:"]
[null,"Nazwa stanowiska","Opis czynności","Wymiar zaangażowania","Wymagane doświadczenie i kwalifikacje"]
["a)"," ",null,null,null,null,null,null,null,null,"Uwaga ! Jeśli w arkuszu potrzebujesz dodać więcej wierszy do wpisania osób, produktów, przychodów, kosztów (lewa strona arkusza - belka boczna \"+\") należy wcześniej uruchomić makra formularza excel. Hasło: CRIS "]
["b)"," "]
["c)"," "]
["d)"," "]
["e)"," "]
["\"+\" <--- Dodaj kolejne osoby"]
["f)"," "]
["g)"," "]
["h)"," "]
[]
[null,"6.1.2. Określ osoby planowane do zaangażowania:"]
[null,"Nazwa:","Imię i nazwisko (o ile jest możliwe do podania na tym etapie):","Posiadane doświadczenie\ni kwalifikacje",null,"Wymagane do uzupełnienia kwalifikacje?",null,"Zatrudniona w ramach dotacji? (tak/nie)"]
[]
["a)",{"$f":"B4","v":" "}]
["b)",{"$f":"B5","v":" "}]
["c)",{"$f":"B6","v":" "}]
["d)",{"$f":"B7","v":" "}]
["e)",{"$f":"B8","v":" "}]
["\"+\" <--- Dodaj kolejne osoby"]
["f)",{"$f":"B10","v":" "}]
["g)",{"$f":"B11","v":" "}]
["h)",{"$f":"B12","v":" "}]
[]
[null,"6.1.3. Kadra kierownicza/ Zarząd"]
[null,"Imię i nazwisko","Posiadane doświadczenie i kwalifikacje"]
["a)"]
["b)"]
["c)"]
["\"+\" <--- Dodaj kolejne osoby"]
["f)"]
["g)"]
["h)"]
[]
[null,"6.1.4. Aktualny stan zatrudnienia"]
[null,"Imię i nazwisko","Stanowisko",null,"Zatrudniona w ramach  OWES? (tak/nie)","Data zatrudnienia",null,"Wymiar etatu"]
["a)"]
["b)"]
["c)"]
["\"+\" <--- Dodaj kolejne osoby"]
["f)"]
["g)"]
["h)"]
[]
["i)"]
["j)"]
["k)"]
[]
["6.2. Zasoby lokalowe"]
[null,"6.2.1. Opis posiadanych zasobów lokalowych lub koniecznych do pozyskania (w tym: posiadany lokal, adres, kondygnacja, metraż, tytuł prawny do lokalu, okres zawiązania umowy):"]
[]
[null,"6.2.2. Wymagania związane z modernizacją (w tym: potrzeby remontowe, potrzeby uzupełnienia infrastruktury i wyposażenia):"]
[]
["6.3. Zasoby ruchome"]
[null,"6.3.1. Opis posiadanych zasobów (patenty, licencje, sprzęty, maszyny, środki transportu oraz inne wyposażenie potrzebne do realizacji projektu) i wycena ich wartości:"]
[]
[null,"6.3.2. Wymagania związane z zasobami koniecznymi do pozyskania lub wymagającymi modernizacji (w tym: uzupełnienie i serwis sprzętu, konieczne programy, licencje, know-how):"]
[]
["6.4. Kluczowi partnerzy"]
[null,"Nazwa:","Adres:","Zakres współpracy o kluczowym znaczeniu:",null,null,null,"Czy partner będzie klientem PS i zostało podpisane porozumienie? (tak/nie)"]
["a)"]
["b)"]
["c)"]
["d)"]
["e)"]
["\"+\" <--- Dodaj kolejnych partnerów"]
["f)"]
["g)"]
["h)"]

{"sheet":"7_Przychody","index":6,"n_rows":60,"n_cols":18,"rows_kept":60,"cut":false,"hidden":false,"merged":[[38,8,39,9],[38,10,39,15],[40,8,41,9],[40,10,41,15],[33,8,34,9],[33,10,34,15],[35,8,36,9],[35,10,36,15],[43,8,44,9],[43,10,44,15],[45,8,46,9],[45,10,46,15],[55,8,56,9],[55,10,56,15],[53,8,54,9],[53,10,54,15],[48,8,49,9],[48,10,49,15],[50,8,51,9],[50,10,51,15],[0,0,0,6],[1,0,1,6],[12,0,12,6],[2,1,2,6],[3,1,3,6],[4,1,4,6],[5,1,5,6],[6,1,6,6],[7,1,7,6],[8,1,8,6],[9,1,9,6],[10,1,10,6],[18,10,19,15],[20,8,21,9],[20,10,21,15],[23,8,24,9],[23,10,24,15],[1,8,5,15],[0,17,5,20],[0,8,0,15],[25,10,26,15],[32,0,32,6],[28,8,29,9],[28,10,29,15],[30,8,31,9],[30,10,31,15],[25,8,26,9],[12,8,12,15],[13,8,14,9],[15,8,16,9],[13,10,14,15],[15,10,16,15],[18,8,19,9]]}
["Prognoza przychodów",null,null,null,null,null,null,null,"Instrukcja",null,null,null,null,null,null,null,null,"Uwaga ! Jeśli w arkuszu potrzebujesz dodać więcej wierszy do wpisania osób, produktów, przychodów, kosztów (lewa strona arkusza - belka boczna \"+\") należy wcześniej uruchomić makra formularza excel. Hasło: CRIS "]
["7.1. Określ swoje produkty/kategorie produktów:",null,null,null,null,null,null,null,"Wnioskodawca określa ilość sprzedanych produktów w danym kwartale oraz w kolejnych dwóch latach, a następnie cenę spredaży produktu. Należy wskazać sposób kalkulacji i ceny, który pomoże ocenić wiarygodność określonych kwot i ilości. Warto wskazać czy przychody będą podlegały wachaniom sezonowości, co uzasadni różnice w planowanej sprzedaży."]
[{"$f":"'5_Produkty'!A36","v":"a)"},{"$f":"'5_Produkty'!B21","v":" "}]
[{"$f":"'5_Produkty'!A37","v":"b)"},{"$f":"'5_Produkty'!B22","v":" "}]
[{"$f":"'5_Produkty'!A38","v":"c)"},{"$f":"'5_Produkty'!B23","v":" "}]
[{"$f":"'5_Produkty'!A40","v":"d)"},{"$f":"'5_Produkty'!B25","v":" "}]
[{"$f":"'5_Produkty'!A41","v":"e)"},{"$f":"'5_Produkty'!B26","v":" "}]
[{"$f":"'5_Produkty'!A43","v":"f)"},{"$f":"'5_Produkty'!B28","v":" "}]
[{"$f":"'5_Produkty'!A44","v":"g)"},{"$f":"'5_Produkty'!B29","v":" "}]
[{"$f":"'5_Produkty'!A46","v":"h)"},{"$f":"'5_Produkty'!B31","v":" "}]
[{"$f":"'5_Produkty'!A47","v":"i)"},{"$f":"'5_Produkty'!B32","v":" "}]
[]
["7.2. Prognoza przychodów na produkcie",null,null,null,null,null,null,null,"Wyjaśnienia kalkulacji ilości i cen"]
[{"$f":"B3","v":" "},"I kwartał","II kwartał","III kwartał","IV kwartał","rok n+1","rok n + 2 ",null,{"$f":"A15","v":"Ilość sprzedaży"}]
["Ilość sprzedaży"]
["Cena sprzedaży",null,null,null,null,null,null,null,{"$f":"A16","v":"Cena sprzedaży"}]
["Wartość sprzedaży",{"$f":"B15*B16","v":0},0,0,0,0,0]
[]
[{"$f":"B4","v":" "},"I kwartał","II kwartał","III kwartał","IV kwartał","rok n+1","rok n + 2 ",null,{"$f":"A20","v":"Ilość sprzedaży"}]
["Ilość sprzedaży"]
["Cena sprzedaży",null,null,null,null,null,null,null,{"$f":"A21","v":"Cena sprzedaży"}]
["Wartość sprzedaży",{"$f":"B20*B21","v":0},0,0,0,0,0]
[]
[{"$f":"B5","v":" "},"I kwartał","II kwartał","III kwartał","IV kwartał","rok n+1","rok n + 2 ",null,{"$f":"A25","v":"Ilość sprzedaży"}]
["Ilość sprzedaży"]
["Cena sprzedaży",null,null,null,null,null,null,null,{"$f":"A26","v":"Cena sprzedaży"}]
["Wartość sprzedaży",{"$f":"B25*B26","v":0},0,0,0,0,0]
[]
[{"$f":"B6","v":" "},"I kwartał","II kwartał","III kwartał","IV kwartał","rok n+1","rok n + 2 ",null,{"$f":"A30","v":"Ilość sprzedaży"}]
["Ilość sprzedaży"]
["Cena sprzedaży",null,null,null,null,null,null,null,{"$f":"A31","v":"Cena sprzedaży"}]
["Wartość sprzedaży",{"$f":"B30*B31","v":0},0,0,0,0,0]
["\"+\" <--- Dodaj kolejne produkty"]
[{"$f":"B7","v":" "},"I kwartał","II kwartał","III kwartał","IV kwartał","rok n+1","rok n + 2 ",null,{"$f":"A35","v":"Ilość sprzedaży"}]
["Ilość sprzedaży"]
["Cena sprzedaży",null,null,null,null,null,null,null,{"$f":"A36","v":"Cena sprzedaży"}]
["Wartość sprzedaży",{"$f":"B35*B36","v":0},0,0,0,0,0]
[]
[{"$f":"B8","v":" "},"I kwartał","II kwartał","III kwartał","IV kwartał","rok n+1","rok n + 2 ",null,{"$f":"A40","v":"Ilość sprzedaży"}]
["Ilość sprzedaży"]
["Cena sprzedaży",null,null,null,null,null,null,null,{"$f":"A41","v":"Cena sprzedaży"}]
["Wartość sprzedaży",{"$f":"B40*B41","v":0},0,0,0,0,0]
[]
[{"$f":"B9","v":" "},"I kwartał","II kwartał","III kwartał","IV kwartał","rok n+1","rok n + 2 ",null,{"$f":"A45","v":"Ilość sprzedaży"}]
["Ilość sprzedaży"]
["Cena sprzedaży",null,null,null,null,null,null,null,{"$f":"A46","v":"Cena sprzedaży"}]
["Wartość sprzedaży",{"$f":"B45*B46","v":0},0,0,0,0,0]
[]
[{"$f":"B10","v":" "},"I kwartał","II kwartał","III kwartał","IV kwartał","rok n+1","rok n + 2 ",null,{"$f":"A50","v":"Ilość sprzedaży"}]
["Ilość sprzedaży"]
["Cena sprzedaży",null,null,null,null,null,null,null,{"$f":"A51","v":"Cena sprzedaży"}]
["Wartość sprzedaży",{"$f":"B50*B51","v":0},0,0,0,0,0]
[]
[{"$f":"B11","v":" "},"I kwartał","II kwartał","III kwartał","IV kwartał","rok n+1","rok n + 2 ",null,{"$f":"A55","v":"Ilość sprzedaży"}]
["Ilość sprzedaży"]
["Cena sprzedaży",null,null,null,null,null,null,null,{"$f":"A56","v":"Cena sprzedaży"}]
["Wartość sprzedaży",{"$f":"B55*B56","v":0},0,0,0,0,0]
[]
["Łączna wartość sprzedaży","I kwartał","II kwartał","III kwartał","IV kwartał","rok n+1","rok n + 2 "]
[null,{"$f":"B17+B22+B27+B32+B37+B42+B47+B52+B57","v":0},{"$f":"C17+C22+C27+C32+C37+C42+C47+C52+C57","v":0},0,0,0,0]

{"sheet":"8_Koszty","index":7,"n_rows":61,"n_cols":18,"rows_kept":61,"cut":false,"hidden":false,"merged":[[12,0,12,6],[12,8,12,15],[0,8,0,15],[27,8,27,15],[22,8,22,15],[17,8,17,15],[14,8,14,15],[0,17,5,20],[59,8,59,9],[0,0,0,6],[1,0,1,6],[2,1,2,6],[3,1,3,6],[4,1,4,6],[5,1,5,6],[6,1,6,6],[7,1,7,6],[8,1,8,6],[9,1,9,6],[10,1,10,6],[32,8,32,15],[38,0,38,6],[1,8,5,15]]}
["Prognoza kosztów",null,null,null,null,null,null,null,"Instrukcja",null,null,null,null,null,null,null,null,"Uwaga ! Jeśli w arkuszu potrzebujesz dodać więcej wierszy do wpisania osób, produktów, przychodów, kosztów (lewa strona arkusza - belka boczna \"+\") należy wcześniej uruchomić makra formularza excel. Hasło: CRIS "]
["8.1. Określ swoje produkty/kategorie produktów:",null,null,null,null,null,null,null,"Wnioskodawca określa koszty zmienne - czyli koszty zależne od ilości sprzedanych produktów i usług (np.. Wzraz z wzrostem sprzedanych posiłków rośnie koszt produktów potrzebnych do ich przygotowania). W dalszej części należy podać koszty stałe przedsięwzięcia - niezależne od efektywności sprzedaży, które przedsiębiorca poniesie zarówno w okresie dobrej i złej koniunktury czy sezonowości produktu. Koszty stałe podajemy w blokach (np. koszt wynagrodzenia pracowników sumujemy do jednego wiersza pierwszej części tabeli)"]
[{"$f":"'7_Przychody'!A3","v":"a)"},{"$f":"'7_Przychody'!B3","v":" "}]
[{"$f":"'7_Przychody'!A4","v":"b)"},{"$f":"'7_Przychody'!B4","v":" "}]
[{"$f":"'7_Przychody'!A5","v":"c)"},{"$f":"'7_Przychody'!B5","v":" "}]
[{"$f":"'7_Przychody'!A6","v":"d)"},{"$f":"'7_Przychody'!B6","v":" "}]
[{"$f":"'7_Przychody'!A7","v":"e)"},{"$f":"'7_Przychody'!B7","v":" "}]
[{"$f":"'7_Przychody'!A8","v":"f)"},{"$f":"'7_Przychody'!B8","v":" "}]
[{"$f":"'7_Przychody'!A9","v":"g)"},{"$f":"'7_Przychody'!B9","v":" "}]
[{"$f":"'7_Przychody'!A10","v":"h)"},{"$f":"'7_Przychody'!B10","v":" "}]
[{"$f":"'7_Przychody'!A11","v":"i)"},{"$f":"'7_Przychody'!B11","v":" "}]
[]
["8.2.Prognoza kosztów zmiennych na produkcie",null,null,null,null,null,null,null,"Prognoza kosztów stałych"]
[{"$f":"B3","v":" "},"I kwartał","II kwartał","III kwartał","IV kwartał","rok n+1","rok n + 2 ",null,"l.p","Kategoria/Nazwa","I kwartał","II kwartał","III kwartał","IV kwartał","rok n+1","rok n + 2 "]
["Ilość sprzedaży",{"$f":"'7_Przychody'!B15","v":0},{"$f":"'7_Przychody'!C15","v":0},{"$f":"'7_Przychody'!D15","v":0},{"$f":"'7_Przychody'!E15","v":0},{"$f":"'7_Przychody'!F15","v":0},{"$f":"'7_Przychody'!G15","v":0},null,"1. Wynagrodzenia pracowników brutto-brutto"]
["Koszt zmienny sprzedaży",null,null,null,null,null,null,null,1]
["Wartość sprzedaży",{"$f":"B15*B16","v":0},0,0,0,0,0,null,2]
[null,null,null,null,null,null,null,null,"2. Koszty czynszu + media"]
[{"$f":"B4","v":" "},"I kwartał","II kwartał","III kwartał","IV kwartał","rok n+1","rok n + 2 ",null,3]
["Ilość sprzedaży",{"$f":"'7_Przychody'!B20","v":0},{"$f":"'7_Przychody'!C20","v":0},{"$f":"'7_Przychody'!D20","v":0},{"$f":"'7_Przychody'!E20","v":0},{"$f":"'7_Przychody'!F20","v":0},{"$f":"'7_Przychody'!G20","v":0},null,4]
["Koszt zmienny sprzedaży",null,null,null,null,null,null,null,5]
["Wartość sprzedaży",{"$f":"B20*B21","v":0},0,0,0,0,0,null,6]
[null,null,null,null,null,null,null,null,"3. Koszty innych usług obcych"]
[{"$f":"B5","v":" "},"I kwartał","II kwartał","III kwartał","IV kwartał","rok n+1","rok n + 2 ",null,7]
["Ilość sprzedaży",{"$f":"'7_Przychody'!B25","v":0},{"$f":"'7_Przychody'!C25","v":0},{"$f":"'7_Przychody'!D25","v":0},{"$f":"'7_Przychody'!E25","v":0},{"$f":"'7_Przychody'!F25","v":0},{"$f":"'7_Przychody'!G25","v":0},null,8]
["Koszt zmienny sprzedaży",null,null,null,null,null,null,null,9]
["Wartość sprzedaży",{"$f":"B25*B26","v":0},0,0,0,0,0,null,10]
[null,null,null,null,null,null,null,null,"4. Koszty marketingu i sprzedaży"]
[{"$f":"B6","v":" "},"I kwartał","II kwartał","III kwartał","IV kwartał","rok n+1","rok n + 2 ",null,11]
["Ilość sprzedaży",{"$f":"'7_Przychody'!B30","v":0},{"$f":"'7_Przychody'!C30","v":0},{"$f":"'7_Przychody'!D30","v":0},{"$f":"'7_Przychody'!E30","v":0},{"$f":"'7_Przychody'!F30","v":0},{"$f":"'7_Przychody'!G30","v":0},null,12]
["Koszt zmienny sprzedaży",null,null,null,null,null,null,null,13]
["Wartość sprzedaży",{"$f":"B30*B31","v":0},0,0,0,0,0,null,14]
[null,null,null,null,null,null,null,null,"5. Inne koszty stałe"]
[{"$f":"B7","v":" "},"I kwartał","II kwartał","III kwartał","IV kwartał","rok n+1","rok n + 2 ",null,15]
["Ilość sprzedaży",{"$f":"'7_Przychody'!B60","v":0},{"$f":"'7_Przychody'!C60","v":0},{"$f":"'7_Przychody'!D60","v":0},{"$f":"'7_Przychody'!E60","v":0},{"$f":"'7_Przychody'!F60","v":0},{"$f":"'7_Przychody'!G60","v":0},null,16]
["Koszt zmienny sprzedaży",null,null,null,null,null,null,null,17]
["Wartość sprzedaży",{"$f":"B35*B36","v":0},0,0,0,0,0,null,18]
[null,null,null,null,null,null,null,null,19]
["\"+\" <--- Dodaj kolejne produkty",null,null,null,null,null,null,null,20]
[{"$f":"B8","v":" "},"I kwartał","II kwartał","III kwartał","IV kwartał","rok n+1","rok n + 2 ",null,21]
["Ilość sprzedaży",{"$f":"'7_Przychody'!B63","v":0},{"$f":"'7_Przychody'!C63","v":0},{"$f":"'7_Przychody'!D63","v":0},{"$f":"'7_Przychody'!E63","v":0},{"$f":"'7_Przychody'!F63","v":0},{"$f":"'7_Przychody'!G63","v":0},null,22]
["Koszt zmienny sprzedaży",null,null,null,null,null,null,null,23]
["Wartość sprzedaży",{"$f":"B41*B42","v":0},0,0,0,0,0,null,24]
[]
[{"$f":"B9","v":" "},"I kwartał","II kwartał","III kwartał","IV kwartał","rok n+1","rok n + 2 "]
["Ilość sprzedaży",{"$f":"'7_Przychody'!B68","v":0},{"$f":"'7_Przychody'!C68","v":0},{"$f":"'7_Przychody'!D68","v":0},{"$f":"'7_Przychody'!E68","v":0},{"$f":"'7_Przychody'!F68","v":0},{"$f":"'7_Przychody'!G68","v":0}]
["Koszt zmienny sprzedaży"]
["Wartość sprzedaży",{"$f":"B46*B47","v":0},0,0,0,0,0]
[]
[{"$f":"B10","v":" "},"I kwartał","II kwartał","III kwartał","IV kwartał","rok n+1","rok n + 2 "]
["Ilość sprzedaży",{"$f":"'7_Przychody'!B73","v":0},{"$f":"'7_Przychody'!C73","v":0},{"$f":"'7_Przychody'!D73","v":0},{"$f":"'7_Przychody'!E73","v":0},{"$f":"'7_Przychody'!F73","v":0},{"$f":"'7_Przychody'!G73","v":0}]
["Koszt zmienny sprzedaży"]
["Wartość sprzedaży",{"$f":"B51*B52","v":0},0,0,0,0,0]
[]
[{"$f":"B11","v":" "},"I kwartał","II kwartał","III kwartał","IV kwartał","rok n+1","rok n + 2 "]
["Ilość sprzedaży",{"$f":"'7_Przychody'!B78","v":0},{"$f":"'7_Przychody'!C78","v":0},{"$f":"'7_Przychody'!D78","v":0},{"$f":"'7_Przychody'!E78","v":0},{"$f":"'7_Przychody'!F78","v":0},{"$f":"'7_Przychody'!G78","v":0}]
["Koszt zmienny sprzedaży"]
["Wartość sprzedaży",{"$f":"B56*B57","v":0},0,0,0,0,0]
[]
["Łączne zmienne koszty sprzedaży","I kwartał","II kwartał","III kwartał","IV kwartał","rok n+1","rok n + 2 ",null,"Łączne koszty stałe",null,"I kwartał","II kwartał","III kwartał","IV kwartał","rok n+1","rok n + 2 "]
[null,{"$f":"B17+B22+B27+B32+B37+B43+B48+B53+B58","v":0},0,0,0,0,0,null,null,null,{"$f":"SUM(K15:K58)","v":0},0,0,0,0,0]

{"sheet":"9_Rachunek wyników","index":8,"n_rows":19,"n_cols":6,"rows_kept":19,"cut":false,"hidden":false,"merged":[[9,5,9,9],[11,5,11,9],[12,5,12,9],[0,0,0,9],[1,5,1,9],[4,5,4,9],[5,5,5,9],[17,5,17,9],[10,5,10,9],[13,5,13,9],[14,5,14,9],[15,5,15,9]]}
["9. Uproszczony Rachunek Zysków i Strat"]
[null,"rok n","rok n+1","rok n+2",null,"Dodatkowe wyjaśnienia co do przychodów i kosztów nie ujętych w arkuszu \"Przychody\""]
["I. Przychody ogółem (1+2+3+4), w tym:",{"$f":"B4+B5+B6","v":0},{"$f":"C4+C5+C6","v":0},{"$f":"D4+D5+D6","v":0}]
["1. Przychody z działalności gospodarczej",{"$f":"SUM('7_Przychody'!B60:E60)","v":0},{"$f":"SUM('7_Przychody'!F60)","v":0},{"$f":"SUM('7_Przychody'!G60)","v":0}]
["2. Pozostałe przychody operacyjnej"]
["3. Pozostałe przychody finansowe"]
[]
["II. Koszty ogółem",{"$f":"B9+B15+B16","v":0},{"$f":"C9+C15+C16","v":0},{"$f":"D9+D15+D16","v":0}]
["4. Koszty działalności gospodarczej (bez amortyzacji), w tym:",{"$f":"B10+B11+B12+B13+B14","v":0},{"$f":"C10+C11+C12+C13+C14","v":0},{"$f":"D10+D11+D12+D13+D14","v":0}]
["a) koszty eksploatacyjne (czynsz+media)",{"$f":"SUM('8_Koszty'!K19:N22)","v":0},{"$f":"SUM('8_Koszty'!O19:O22)","v":0},{"$f":"SUM('8_Koszty'!P19:P22)","v":0}]
["b) wynagrodzenia brutto-brutto",{"$f":"SUM('8_Koszty'!K16:N17)","v":0},{"$f":"SUM('8_Koszty'!O16:O17)","v":0},{"$f":"SUM('8_Koszty'!P16:P17)","v":0}]
["c) koszty usług obcych",{"$f":"SUM('8_Koszty'!K24:N27)+SUM('8_Koszty'!K29:N32)","v":0},{"$f":"SUM('8_Koszty'!O24:O27)+SUM('8_Koszty'!O29:O32)","v":0},{"$f":"SUM('8_Koszty'!P24:P27)+SUM('8_Koszty'!P29:P32)","v":0}]
["d) pozostałe koszty działalności gospodarczej",{"$f":"SUM('8_Koszty'!K34:N39)","v":0},{"$f":"SUM('8_Koszty'!O34:O44)","v":0},{"$f":"SUM('8_Koszty'!P34:P44)","v":0}]
["c) koszt zmienne sprzedanych produktów i usług",{"$f":"SUM('8_Koszty'!B61:E61)","v":0},{"$f":"SUM('8_Koszty'!F61)","v":0},{"$f":"SUM('8_Koszty'!G61)","v":0}]
["5. Pozostałe koszty działalności operacyjnej"]
["6. Pozostałe koszty finansowe (pożyczki, kredyty, inne zobowiązania względem instytucji finansowych)"]
[]
["III. 1 Podatek dochodowy (jeśli dotyczy)"]
["IV. 1 Zysk (strata)",{"$f":"(B3-B8)-B18","v":0},{"$f":"(C3-C8)-C18","v":0},{"$f":"(D3-D8)-D18","v":0}]

{"sheet":"10_Dotacja inwestycyjna","index":9,"n_rows":51,"n_cols":17,"rows_kept":51,"cut":false,"hidden":false,"merged":[[19,1,21,3],[19,5,19,7],[20,5,20,7],[21,5,21,7],[19,8,19,9],[20,8,20,9],[21,8,21,9],[7,0,9,0],[0,0,0,14],[3,1,3,3],[3,4,3,7],[4,5,4,7],[3,10,3,11],[4,10,4,11],[4,8,4,9],[3,8,3,9],[4,0,6,0],[4,12,4,13],[5,12,5,13],[6,12,6,13],[7,5,7,7],[1,0,1,7],[2,0,2,7],[2,8,2,14],[1,8,1,14],[7,1,9,3],[8,8,8,9],[9,8,9,9],[7,10,7,11],[8,10,8,11],[9,10,9,11],[37,8,37,14],[38,8,39,14],[16,0,18,0],[17,5,17,7],[18,5,18,7],[12,5,12,7],[10,0,12,0],[10,5,10,7],[36,0,36,4],[13,1,15,3],[13,5,13,7],[14,5,14,7],[15,5,15,7],[13,8,13,9],[22,0,24,0],[25,0,27,0],[26,5,26,7],[25,5,25,7],[24,10,24,11],[10,8,10,9],[11,8,11,9],[12,8,12,9],[10,12,10,13],[11,12,11,13],[16,5,16,7],[16,12,16,13],[17,12,17,13],[24,8,24,9],[8,5,8,7],[9,5,9,7],[7,8,7,9],[3,12,3,13],[12,12,12,13],[9,12,9,13],[5,8,5,9],[11,5,11,7],[5,5,5,7],[6,5,6,7],[5,10,5,11],[6,10,6,11],[14,10,14,11],[15,10,15,11],[13,12,13,13],[14,12,14,13],[15,12,15,13],[7,12,7,13],[8,12,8,13],[19,12,19,13],[34,5,34,7],[23,12,23,13],[24,12,24,13],[25,12,25,13],[23,5,23,7],[23,10,23,11],[22,8,22,9],[23,8,23,9],[19,10,19,11],[20,10,20,11],[21,10,21,11],[25,8,25,9],[22,5,22,7],[24,5,24,7],[20,12,20,13],[21,12,21,13],[44,0,46,0],[44,1,46,3],[44,5,44,7],[44,8,44,9],[44,10,44,11],[26,12,26,13],[27,12,27,13],[32,5,32,7],[32,8,32,9],[31,0,31,14],[28,0,30,0],[28,1,30,3],[28,5,28,7],[28,8,28,9],[28,10,28,11],[28,12,28,13],[34,8,34,9],[34,10,34,11],[34,12,34,13],[33,5,33,7],[33,8,33,9],[33,10,33,11],[33,12,33,13],[32,0,34,0],[47,12,47,14],[48,5,48,7],[48,8,48,9],[48,10,48,11],[48,12,48,14],[47,1,48,3],[44,12,44,14],[45,5,45,7],[45,8,45,9],[45,10,45,11],[45,12,45,14],[46,5,46,7],[46,8,46,9],[46,10,46,11],[46,12,46,14],[43,12,43,14],[25,10,25,11],[14,8,14,9],[15,8,15,9],[13,10,13,11],[32,1,34,3],[22,10,22,11],[47,0,48,0],[4,1,6,3],[10,1,12,3],[16,1,18,3],[22,1,24,3],[25,1,27,3],[47,5,47,7],[47,8,47,9],[47,10,47,11],[43,1,43,3],[43,4,43,7],[43,8,43,9],[43,10,43,11],[26,10,26,11],[27,10,27,11],[26,8,26,9],[27,8,27,9],[0,16,5,19],[18,12,18,13],[22,12,22,13],[6,8,6,9],[10,10,10,11],[32,10,32,11],[32,12,32,13],[29,5,29,7],[29,8,29,9],[29,10,29,11],[29,12,29,13],[30,5,30,7],[30,8,30,9],[30,10,30,11],[30,12,30,13],[27,5,27,7],[16,8,16,9],[17,8,17,9],[18,8,18,9],[11,10,11,11],[12,10,12,11],[16,10,16,11],[17,10,17,11],[18,10,18,11],[49,0,50,0],[49,1,50,3],[49,5,49,7],[49,8,49,9],[49,10,49,11],[49,12,49,14],[50,5,50,7],[50,8,50,9],[50,10,50,11],[50,12,50,14]]}
["10. Planowana inwestycja",null,null,null,null,null,null,null,null,null,null,null,null,null,null,null,"Uwaga ! Jeśli w arkuszu potrzebujesz dodać więcej wierszy do wpisania osób, produktów, przychodów, kosztów (lewa strona arkusza - belka boczna \"+\") należy wcześniej uruchomić makra formularza excel. Hasło: CRIS "]
["Czas wydatkowania inwestycji:"]
["Suma wnioskowanego dofinansowania netto (bez podatku VAT):",null,null,null,null,null,null,null,{"$f":"SUM(K5:L35)","v":0}]
[null,"Obszar inwestycji \ni uzasadnienie",null,null,"Nazwa wydatku",null,null,null,"Kalkulacja kosztu:",null,"Suma kosztu netto:",null,"Okres realizacji",null,"W (wypełnia komisja)"]
["1. ",null,null,null,1]
[null,null,null,null,2]
[null,null,null,null,3]
[null,null,null,null,4]
[null,null,null,null,5]
[null,null,null,null,6]
["2. ",null,null,null,1]
[null,null,null,null,2]
[null,null,null,null,3]
[null,null,null,null,4]
[null,null,null,null,5]
[null,null,null,null,6]
["3. ",null,null,null,1]
[null,null,null,null,2]
[null,null,null,null,3]
[null,null,null,null,4]
[null,null,null,null,5]
[null,null,null,null,6]
["4. ",null,null,null,1]
[null,null,null,null,2]
[null,null,null,null,3]
["5. ",null,null,null,1]
[null,null,null,null,2]
[null,null,null,null,3]
["6. ",null,null,null,1]
[null,null,null,null,2]
[null,null,null,null,3]
["\"+\" <--- Dodaj kolejne wydatki"]
["7. ",null,null,null,1]
[null,null,null,null,2]
[null,null,null,null,3]
[]
[]
[null,null,null,null,null,null,null,null,"…………………………………………...……………………………………………."]
[null,null,null,null,null,null,null,null,"Podpis Uczestnik/ów Projektu\n lub osób uprawnionych do reprezentowania podmiotu/ów"]
[]
["Uwaga: Harmonogram rzeczowo-finansowy tworzony jest w kwotach netto (bez uwzględnienia podatku VAT)"]
[]
["Przykład:"]
[null,"Obszar inwestycji i uzasadnienie",null,null,"Nazwa wydatku",null,null,null,"Kalkulacja kosztu:",null,"Suma kosztu:",null,"Okres realizacji"]
["1. ","Koszty remontu - konieczna adaptacja lokalu o pow. 35m2. W zakres robót wchodzą inwestycje w sieć wod-kan, prace budowlane i wykończeniowe",null,null,1,"Prace Wod-Kan",null,null,"1. Rozeznanie rynku - 5 tys. zł",null,5000,null,"01.2019 - 04.2019"]
[null,null,null,null,2,"Prace budowlane i wyburzeniowe",null,null,"1. Budowa ścienek (rozeznanie rynku - 4,5 tys. zł)\n2. Malowanie (1,5 tys. zł) \n3. Prace wyburzeniowe i sprzątanie (2,5 tys. zł)",null,8500,null,"01.2019 - 04.2019"]
[null,null,null,null,3,"Wyposażenie w meble i wystrój",null,null,"1. Zakup mebli (4 tys. zł)\n2. Zakup elementów wystroju (1 tys. zł)",null,5000,null,"04.2019-06.2019"]
["2. ","Zakup samochodu -konieczny ze względu na sprzedaż żywności poza lokalem ",null,null,1,"Samochód",null,null,"Samochód (zasada konkurencyjności) - 10 tys. zł",null,10000,null,"04.2019-06.2019"]
[null,null,null,null,2,"Dostosowanie do przepisów sanitarnych",null,null,"Usługa zewnętrzna (z wolnej ręki) - 3 tys. zł",null,3000,null,"04.2019-06.2019"]
["3. ","Zakup sprzętu gastronomicznego",null,null,1,"Wyposażenie kuchni",null,null,"Piec - 3 tys. \nBemar (2szt) - 1,5 tys. \nFrytkownica - 500 zł\nGarnki, patelnie (2szt)(zestaw 8 elementów każdy) - 1,5 tys.",null,6500,null,"04.2019-06.2019"]
[null,null,null,null,2,"Wyposażenie Sali",null,null,"Zestawy talerzy, sztućce, szklanki, kubki, itd.. - 1 tys. zł",null,1000,null,"04.2019-06.2019"]

{"sheet":"11_Wsparcie pomostowe","index":10,"n_rows":58,"n_cols":17,"rows_kept":58,"cut":false,"hidden":false,"merged":[[38,1,40,3],[38,5,38,7],[38,8,38,9],[38,10,38,11],[38,12,38,13],[39,5,39,7],[39,8,39,9],[39,10,39,11],[34,5,34,7],[34,8,34,9],[24,12,24,14],[28,0,28,9],[28,10,28,11],[28,12,28,14],[32,0,32,9],[32,10,32,11],[32,12,32,14],[36,0,36,9],[36,10,36,11],[36,12,36,14],[27,5,27,7],[17,12,17,14],[21,1,23,3],[21,5,21,7],[21,8,21,9],[21,10,21,11],[21,12,21,13],[22,5,22,7],[22,8,22,9],[22,10,22,11],[22,12,22,13],[23,5,23,7],[23,8,23,9],[23,10,23,11],[23,12,23,13],[20,5,20,7],[20,8,20,9],[20,10,20,11],[20,12,20,13],[7,12,7,13],[8,12,8,13],[9,12,9,13],[14,1,16,3],[14,5,14,7],[14,8,14,9],[14,10,14,11],[14,12,14,13],[15,5,15,7],[15,8,15,9],[15,10,15,11],[15,12,15,13],[16,5,16,7],[16,8,16,9],[16,10,16,11],[16,12,16,13],[10,12,10,13],[43,0,43,4],[7,1,9,3],[7,5,7,7],[8,5,8,7],[9,5,9,7],[7,8,7,9],[8,8,8,9],[9,8,9,9],[7,10,7,11],[8,10,8,11],[9,10,9,11],[17,0,17,9],[17,10,17,11],[24,0,24,9],[24,10,24,11],[41,0,41,9],[41,10,41,11],[10,0,10,9],[10,10,10,11],[40,5,40,7],[40,8,40,9],[40,10,40,11],[37,0,37,14],[38,0,40,0],[56,12,56,14],[57,5,57,7],[57,8,57,9],[57,10,57,11],[57,12,57,14],[50,12,50,14],[50,10,50,11],[50,8,50,9],[50,4,50,7],[55,12,55,14],[54,12,54,14],[51,12,51,14],[52,12,52,14],[50,1,50,3],[56,0,57,0],[56,1,57,3],[56,5,56,7],[56,8,56,9],[56,10,56,11],[55,5,55,7],[55,8,55,9],[55,10,55,11],[54,0,55,0],[54,1,55,3],[54,5,54,7],[54,8,54,9],[54,10,54,11],[51,0,53,0],[51,1,53,3],[51,5,51,7],[51,8,51,9],[51,10,51,11],[52,5,52,7],[52,8,52,9],[52,10,52,11],[27,8,27,9],[27,10,27,11],[27,12,27,13],[45,8,46,14],[44,8,44,14],[53,5,53,7],[53,8,53,9],[53,10,53,11],[53,12,53,14],[34,10,34,11],[34,12,34,13],[41,12,41,14],[39,12,39,13],[40,12,40,13],[33,0,35,0],[33,1,35,3],[33,5,33,7],[33,8,33,9],[33,10,33,11],[33,12,33,13],[29,0,31,0],[29,1,31,3],[29,5,29,7],[29,8,29,9],[29,10,29,11],[29,12,29,13],[30,5,30,7],[30,8,30,9],[30,10,30,11],[30,12,30,13],[35,5,35,7],[35,8,35,9],[35,10,35,11],[35,12,35,13],[31,5,31,7],[31,8,31,9],[31,10,31,11],[31,12,31,13],[6,5,6,7],[6,8,6,9],[6,10,6,11],[6,12,6,13],[25,0,27,0],[25,1,27,3],[25,5,25,7],[25,8,25,9],[25,10,25,11],[25,12,25,13],[18,0,20,0],[18,1,20,3],[18,5,18,7],[18,8,18,9],[18,10,18,11],[18,12,18,13],[19,5,19,7],[19,8,19,9],[19,10,19,11],[19,12,19,13],[26,5,26,7],[26,8,26,9],[26,10,26,11],[26,12,26,13],[11,0,13,0],[11,1,13,3],[11,5,11,7],[11,8,11,9],[11,10,11,11],[11,12,11,13],[4,0,6,0],[4,1,6,3],[4,5,4,7],[4,8,4,9],[4,10,4,11],[4,12,4,13],[5,5,5,7],[5,8,5,9],[5,10,5,11],[5,12,5,13],[12,5,12,7],[12,8,12,9],[12,10,12,11],[12,12,12,13],[13,5,13,7],[13,8,13,9],[13,10,13,11],[13,12,13,13],[0,16,5,19],[0,0,0,14],[3,1,3,3],[3,4,3,7],[3,8,3,9],[3,10,3,11],[3,12,3,13],[1,0,1,7],[2,0,2,7],[2,8,2,14],[1,8,1,14]]}
["11. Harmonogram rzeczowo-finansowy podstawowego wsparcia pomostowego",null,null,null,null,null,null,null,null,null,null,null,null,null,null,null,"Uwaga ! Jeśli w arkuszu potrzebujesz dodać więcej wierszy do wpisania osób, produktów, przychodów, kosztów (lewa strona arkusza - belka boczna \"+\") należy wcześniej uruchomić makra formularza excel. Hasło: CRIS "]
["Termin rozpoczęcia i zakończenia:"]
["Suma wnioskowanego dofinansowania netto (bez podatku VAT):",null,null,null,null,null,null,null,{"$f":"SUM(K11,K18,K25,K29,K33,K37,K42)","v":0}]
[null,"Obszar inwestycji\ni uzasadnienie",null,null,"Nazwa wydatku",null,null,null,"Kalkulacja kosztu:",null,"Suma kosztu netto:",null,"Okres realizacji",null,"W (wypełnia komisja)"]
["1. "," ",null,null,1]
[null,null,null,null,2]
[null,null,null,null,3]
[null,null,null,null,4]
[null,null,null,null,5]
[null,null,null,null,6]
["Suma kosztów kwalifikowanych zadania:",null,null,null,null,null,null,null,null,null,{"$f":"SUM(K5:L10)","v":0}]
["2. "," ",null,null,1]
[null,null,null,null,2]
[null,null,null,null,3]
[null,null,null,null,4]
[null,null,null,null,5]
[null,null,null,null,6]
["Suma kosztów kwalifikowanych zadania:",null,null,null,null,null,null,null,null,null,{"$f":"SUM(K12:L17)","v":0}]
["3. "," ",null,null,1]
[null,null,null,null,2]
[null,null,null,null,3]
[null,null,null,null,4]
[null,null,null,null,5]
[null,null,null,null,6]
["Suma kosztów kwalifikowanych zadania:",null,null,null,null,null,null,null,null,null,{"$f":"SUM(K19:L24)","v":0}]
["4. "," ",null,null,1]
[null,null,null,null,2]
[null,null,null,null,3]
["Suma kosztów kwalifikowanych zadania:",null,null,null,null,null,null,null,null,null,{"$f":"SUM(K26:L28)","v":0}]
["5. "," ",null,null,1]
[null,null,null,null,2]
[null,null,null,null,3]
["Suma kosztów kwalifikowanych zadania:",null,null,null,null,null,null,null,null,null,{"$f":"SUM(K30:L32)","v":0}]
["6. "," ",null,null,1]
[null,null,null,null,2]
[null,null,null,null,3]
["Suma kosztów kwalifikowanych zadania:",null,null,null,null,null,null,null,null,null,{"$f":"SUM(K34:L36)","v":0}]
["\"+\" <--- Dodaj kolejne wydatki"]
["7. "," ",null,null,1]
[null,null,null,null,2]
[null,null,null,null,3]
["Suma kosztów kwalifikowanych zadania:",null,null,null,null,null,null,null,null,null,{"$f":"SUM(K39:L41)","v":0}]
[]
[]
[null,null,null,null,null,null,null,null,"…………………………………………...……………………………………………."]
[null,null,null,null,null,null,null,null,"Podpis Uczestnik/ów Projektu\n lub osób uprawnionych do reprezentowania podmiotu/ów"]
[]
["Uwaga: Harmonogram rzeczowo-finansowy tworzony jest w kwotach netto (bez uwzględnienia podatku VAT)"]
[]
["Przykład:"]
[null,"Obszar inwestycji i uzasadnienie",null,null,"Nazwa wydatku",null,null,null,"Kalkulacja kosztu:",null,"Suma kosztu:",null,"Okres realizacji"]
["1. ","Koszty zatrudnienia",null,null,1,"ZUS/US",null,null,"6 miesięcy x 5 osób x 600,00 zł",null,18000,null,"01.2019 - 06.2019"]
[null,null,null,null,2]
[null,null,null,null,3]
["2. ","Koszty usług obcych",null,null,1,"Biuro księgowe",null,null,"6 miesięcy x 350,00 zł",null,2100,null,"01.2019 - 06.2019"]
[null,null,null,null,2,"Koszty usług marketingowych",null,null,"6 miesięcy x 450,00 zł",null,2700,null,"01.2019 - 06.2019"]
["3. ","Koszty czynszu+media",null,null,1,"Czynsz",null,null,"5 miesięcy x 800,00 zł",null,4000,null,"02.2019 - 06.2019"]
[null,null,null,null,2,"Media",null,null,"5 miesięcy x 300,00 zł",null,3000,null,"02.2019 - 06.2019"]

{"sheet":"SW_Dotacja inwestycyjna","index":11,"n_rows":64,"n_cols":13,"rows_kept":64,"cut":false,"hidden":true,"merged":[[47,1,47,2],[34,1,34,2],[35,1,35,2],[37,1,37,2],[38,1,38,2],[39,1,39,2],[40,1,40,2],[41,1,41,2],[43,1,43,2],[44,1,44,2],[45,1,45,2],[46,1,46,2],[38,3,38,5],[39,3,39,5],[40,3,40,5],[34,3,34,5],[35,3,35,5],[37,3,37,5],[46,3,46,5],[47,3,47,5],[41,3,41,5],[43,3,43,5],[44,3,44,5],[45,3,45,5],[22,1,22,2],[22,3,22,5],[27,1,27,2],[28,1,28,2],[29,1,29,2],[23,1,23,2],[23,3,23,5],[24,1,24,2],[25,1,25,2],[26,1,26,2],[24,3,24,5],[33,1,33,2],[33,3,33,5],[25,3,25,5],[26,3,26,5],[27,3,27,5],[28,3,28,5],[29,3,29,5],[31,3,31,5],[32,3,32,5],[31,1,31,2],[32,1,32,2],[9,3,9,5],[8,6,8,8],[8,9,8,11],[18,3,18,5],[19,1,19,2],[19,3,19,5],[12,1,12,2],[12,3,12,5],[1,0,1,7],[1,8,1,10],[1,11,1,12],[11,1,11,2],[11,3,11,5],[2,5,2,12],[3,2,3,12],[3,0,3,1],[2,0,2,4],[10,3,10,5],[7,0,7,12],[10,1,10,2],[4,0,4,3],[4,6,4,12],[5,0,6,12],[9,1,9,2],[50,0,50,12],[13,1,13,2],[13,3,13,5],[14,1,14,2],[14,3,14,5],[15,1,15,2],[15,3,15,5],[16,1,16,2],[16,3,16,5],[17,1,17,2],[17,3,17,5],[18,1,18,2],[20,1,20,2],[20,3,20,5],[21,1,21,2],[21,3,21,5]]}
[]
["Sprawozdanie z wydatkowania dotacji inwestycyjnej nr:",null,null,null,null,null,null,null,"…………….."]
["Nazwa przedsiębiorstwa społecznego (Beneficjenta pomocy): "]
["Adres: "]
["Okres wydatkowania zgodnie z umową:",null,null,null,"od:","do:"]
["Niniejszym oświadczam, że dokonałem/am zakupów towarów i usług zgodnie z biznesplanem stanowiącym załącznik do umowy. Poniżej przedkładam zbiorczą informację nt. poniesionych kosztów."]
[]
["Zbiorcze zestawienie wydatków w ramach dotacji inwestycyjnej"]
[null,null,null,null,null,null,"Informacje o dokumencie",null,null,"Koszt kwalifikowany w ramach dotacji"]
["l.p","Numer dokumentu",null,"1. Nazwa towaru lub usługi oraz \n2. Opis parametrów jakościowych i technicznych",null,null,"Data wystawienia","Data zapłaty","Numer ewidencyjny - księgowy","brutto"," netto \n(koszt kwalifikowany)","VAT","Obszar i numer wydatku w ramach biznesplanu"]
[1]
[2]
[3]
[4]
[5]
[6]
[7]
[8]
[9]
[10]
[11]
[12]
[13]
[14]
[15]
[16]
[17]
[18]
[19]
[20]
["\"+\" <- dodaj wiersze"]
[21]
[22]
[23]
[24]
[25]
[]
[26]
[27]
[28]
[29]
[30]
[]
[31]
[32]
[33]
[34]
[35]
[null,null,null,null,null,"SUMA:",{"$f":"SUM(G11:G48)","v":0},null,{"$f":"SUM(I11:I48)","v":0},{"$f":"SUM(J11:J48)","v":0},{"$f":"SUM(K11:K48)","v":0},{"$f":"SUM(L11:L48)","v":0}]
[]
["Oświadczam również, że faktury/rachunki oraz dokumenty równoważne ujęte w sprawozdaniu zostały opłacone w całości."]
[null,null,null,null,null,null,null,null,"......................................................... "]
[null,null,null,null,null,null,null,null,null,"Data i podpis"]
[]
[]
[]
[]
[null,"Obszar 1",{"$f":"'10_Dotacja inwestycyjna'!B5","v":0}]
[null,"Obszar 2",{"$f":"'10_Dotacja inwestycyjna'!B11","v":0}]
[null,"Obszar 3",{"$f":"'10_Dotacja inwestycyjna'!B17","v":0}]
[null,"Obszar 4",{"$f":"'10_Dotacja inwestycyjna'!B23","v":0}]
[null,"Obszar 5",{"$f":"'10_Dotacja inwestycyjna'!B26","v":0}]
[null,"Obszar 6",{"$f":"'10_Dotacja inwestycyjna'!B29","v":0}]
[null,"Obszar 7",{"$f":"'10_Dotacja inwestycyjna'!B33","v":0}]

{"sheet":"SW_Wsparcie pomostowe","index":12,"n_rows":70,"n_cols":15,"rows_kept":70,"cut":false,"hidden":true,"merged":[[6,14,6,19],[7,14,7,19],[8,14,8,19],[5,14,5,19],[13,6,13,8],[13,9,13,11],[8,0,8,3],[8,4,8,12],[55,0,55,12],[12,0,12,12],[4,6,5,7],[4,8,5,12],[5,0,5,5],[9,0,10,12],[14,1,14,2],[14,3,14,5],[15,1,15,2],[15,3,15,5],[16,1,16,2],[16,3,16,5],[17,1,17,2],[17,3,17,5],[1,0,1,7],[1,8,1,10],[6,0,6,3],[6,4,6,12],[7,0,7,3],[7,4,7,12],[3,0,3,1],[3,2,3,12],[2,0,2,4],[2,5,2,12],[18,1,18,2],[18,3,18,5],[19,1,19,2],[19,3,19,5],[20,1,20,2],[20,3,20,5],[21,1,21,2],[21,3,21,5],[22,1,22,2],[22,3,22,5],[23,1,23,2],[23,3,23,5],[24,1,24,2],[24,3,24,5],[25,1,25,2],[25,3,25,5],[26,1,26,2],[26,3,26,5],[27,1,27,2],[27,3,27,5],[28,1,28,2],[28,3,28,5],[29,1,29,2],[29,3,29,5],[30,1,30,2],[30,3,30,5],[31,1,31,2],[31,3,31,5],[32,1,32,2],[32,3,32,5],[33,1,33,2],[33,3,33,5],[34,1,34,2],[34,3,34,5],[36,1,36,2],[36,3,36,5],[37,1,37,2],[37,3,37,5],[38,1,38,2],[38,3,38,5],[39,1,39,2],[39,3,39,5],[40,1,40,2],[40,3,40,5],[42,1,42,2],[42,3,42,5],[49,3,49,5],[43,1,43,2],[43,3,43,5],[44,1,44,2],[44,3,44,5],[45,1,45,2],[45,3,45,5],[46,1,46,2],[46,3,46,5],[48,1,48,2],[48,3,48,5],[49,1,49,2],[50,1,50,2],[50,3,50,5],[51,1,51,2],[51,3,51,5],[52,1,52,2],[52,3,52,5]]}
[]
["Sprawozdanie z wydatkowania wsparcia pomostowego zgodnie z umową nr:",null,null,null,null,null,null,null," ………………………….."]
["Nazwa przedsiębiorstwa społecznego (Beneficjenta pomocy):"]
["Adres:"]
["Zestawienie za okres:",null,null,"od:","do:",null,"Sprawozdanie obejmuje:"]
["Sprawozdanie merytoryczne:",null,null,null,null,null,null,null,null,null,null,null,null,null,"Instrukcja"]
["1. W zakresie realizacji celów społecznych \nzgodnie z biznesplanem:",null,null,null,null,null,null,null,null,null,null,null,null,null,"Należy odnieść się do celów wskazanych w biznesplanie. Czy wnioskodawcy udało się osiągnąć cele społeczne w kontekście zaangażowanej kadry, odbiorców przedsięwzięcia lub wsparcia określonych grup. Czy wnioskodawcy udało się wdrożyć ofertę opracowaną specjalnie w celach społecznych? Jeżeli założenia biznesplanu nie zostały osiągnięte należy podać jaki inny wpływ społeczny miało planowane przedsięwzięcie."]
["2. W zakresie realizacji celów ekonomicznych\nzgodnie z biznesplanem:",null,null,null,null,null,null,null,null,null,null,null,null,null,"Należy odnieść się do celów wskazanych w biznesplanie. Czy wnioskodawca osiągnął założenia ekonomiczne w zakresie ilości sprzedanych usług, osiągniętych przychodów? Czy założenia ekonomiczne uległy zmianie, jeśli tak dlaczego? Jeśli nie udało się osiągnąć oczekiwanych rezultatów jaka jest sytuacja ekonomiczna podmiotu?"]
["3. Informacje w zakresie zaangazowanych zasobów i utworzonych stanowisk pracy.\n",null,null,null,null,null,null,null,null,null,null,null,null,null,"Należy wskazać jakie zasoby zaangażował wnioskodawca w realizację przedsięwzięcia. Czy zostały wniesione zasoby (np.. finansowe, rzeczowe, osobowe)? Jaka jest aktualnie sytuacja zatrudnieniowa organizacji, w tym osób, dla których została udzielona dotacja na utworzenie miejsca pracy?"]
["Niniejszym oświadczam, że dokonałem/am zakupów towarów i usług zgodnie z harmonogramem rzeczowo-finansowym wsparcie pomostowego określonym w umowie. Poniżej przedkładam zbiorczą informację nt. poniesionych kosztów."]
[]
[]
["Zbiorcze zestawienie wydatków w ramach dotacji inwestycyjnej"]
[null,null,null,null,null,null,"Informacje o dokumencie",null,null,"Kwoty dokumentu w cz. dotyczącej dotacji"]
["l.p","Numer dokumentu",null,"1. Nazwa towaru lub usługi oraz \n2. Opis parametrów jakościowych i technicznych",null,null,"Data wystawienia","Data zapłaty","Numer ewidencyjny - księgowy","brutto"," netto \n(koszt kwalifikowany)","VAT","Obszar i numer wydatku w ramach biznesplanu"]
[1,null,null,null,null,null,null,null,null,null,null,null," "]
[2,null,null,null,null,null,null,null,null,null,null,null," "]
[3,null,null,null,null,null,null,null,null,null,null,null," "]
[4,null,null,null,null,null,null,null,null,null,null,null," "]
[5,null,null,null,null,null,null,null,null,null,null,null," "]
[6,null,null,null,null,null,null,null,null,null,null,null," "]
[7,null,null,null,null,null,null,null,null,null,null,null," "]
[8,null,null,null,null,null,null,null,null,null,null,null," "]
[9,null,null,null,null,null,null,null,null,null,null,null," "]
[10,null,null,null,null,null,null,null,null,null,null,null," "]
[11,null,null,null,null,null,null,null,null,null,null,null," "]
[12,null,null,null,null,null,null,null,null,null,null,null," "]
[13,null,null,null,null,null,null,null,null,null,null,null," "]
[14,null,null,null,null,null,null,null,null,null,null,null," "]
[15,null,null,null,null,null,null,null,null,null,null,null," "]
[16,null,null,null,null,null,null,null,null,null,null,null," "]
[17,null,null,null,null,null,null,null,null,null,null,null," "]
[18,null,null,null,null,null,null,null,null,null,null,null," "]
[19,null,null,null,null,null,null,null,null,null,null,null," "]
[20,null,null,null,null,null,null,null,null,null,null,null," "]
["\"+\" <- dodaj wiersze"]
[21]
[22]
[23]
[24]
[25]
[]
[26]
[27]
[28]
[29]
[30]
[]
[31]
[32]
[33]
[34]
[35]
[null,null,null,null,null,"SUMA:",{"$f":"SUM(G16:G53)","v":0},0,0,0,0,0]
[]
["Oświadczam również, że faktury/rachunki oraz dokumenty równoważne ujęte w sprawozdaniu zostały opłacone w całości."]
[]
[null,null,null,null,null,null,null,"......................................................... "]
[null,null,null,null,null,null,null,null,"Data i podpis"]
[]
[]
[]
[null,"n"]
[null,"Obszar 1",{"$f":"'11_Wsparcie pomostowe'!B5","v":" "},{"$f":"SUMIF(M13:M51,\"Obszar 1\",J13:J51)","v":0}]
[null,"Obszar 2",{"$f":"'11_Wsparcie pomostowe'!B12","v":" "},{"$f":"SUMIF(M15:M52,\"Obszar 2\",J15:J52)","v":0}]
[null,"Obszar 3",{"$f":"'11_Wsparcie pomostowe'!B19","v":" "},{"$f":"SUMIF(M16:M53,\"Obszar 3\",J16:J53)","v":0}]
[null,"Obszar 4",{"$f":"'11_Wsparcie pomostowe'!B26","v":" "},{"$f":"SUMIF(M17:M54,\"Obszar 4\",J17:J54)","v":0}]
[null,"Obszar 5",{"$f":"'11_Wsparcie pomostowe'!B30","v":" "},{"$f":"SUMIF(M18:M55,\"Obszar 5\",J18:J55)","v":0}]
[null,"Obszar 6",{"$f":"'11_Wsparcie pomostowe'!B34","v":" "},{"$f":"SUMIF(M19:M56,\"Obszar 6\",J19:J56)","v":0}]
[null,"Obszar 7",{"$f":"'11_Wsparcie pomostowe'!B39","v":" "},{"$f":"SUMIF(M20:M57,\"Obszar 7\",J20:J57)","v":0}]